[Event "WYCC U18 Girls 2019"]
[Site "Mumbai"]
[Date "2019.10.03"]
[Round "2.1"]
[White "Tanishka Kotia"]
[Black "Shuvalova, Polina"]
[Result "0-1"]
[ECO "A40"]
[WhiteElo "2090"]
[BlackElo "2412"]
[Annotator "NA"]
[PlyCount "62"]
[EventDate "2019.10.02"]
[EventType "swiss"]
[EventCountry "IND"]
[SourceTitle "playchess.com"]
[Source "ChessBase"]
[SourceQuality "1"]
[TimeControl "40/5400+30:1800+30"]

1. c4 {[%emt 0:00:00]} e6 {[%emt 0:00:43]} 2. d4 {[%emt 0:01:25]} Nf6 {[%emt 0:00:18]} 3. g3 {[%emt 0:00:20]} c5 {[%emt 0:00:18]} 4. e3 {[%emt 0:04:04]} cxd4 {[%emt 0:02:58]} 5. exd4 {[%emt 0:00:17]} d5 {[%emt 0:00:09]} 6. Bg2 {[%emt 0:02:30]} Bb4+ {[%emt 0:01:10]} 7. Bd2 {[%emt 0:01:44]} Bxd2+ {[%emt 0:02:51]} 8. Nxd2 {[%emt 0:00:48]} O-O {[%emt 0:00:22]} 9. Ngf3 {[%emt 0:01:14]} b6 {[%emt 0:06:53]} 10. O-O {[%emt 0:04:26]} Bb7 {[%emt 0:02:04]} 11. c5 {[%emt 0:03:41]} Nc6 {[%emt 0:04:03]} 12. a3 {[%emt 0:07:36]} bxc5 {[%emt 0:03:50]} 13. dxc5 {[%emt 0:00:22]} e5 {[%emt 0:00:28]} 14. b4 {[%emt 0:06:57]} e4 {[%emt 0:02:49]} 15. Ng5 {[%emt 0:00:48]} Ba6 {[%emt 0:06:47]} 16. Re1 {[%emt 0:00:25]} Rb8 {[%emt 0:01:04]} 17. Nb3 {[%emt 0:05:37]} Bd3 {[%emt 0:07:24]} 18. f3 {[%emt 0:01:28]} Re8 {[%emt 0:03:30]} 19. Nc1 {[%emt 0:08:50]} Bc4 {[%emt 0:11:29]} 20. fxe4 {[%emt 0:14:43]} h6 {[%emt 0:00:44]} 21. exd5 {[%emt 0:12:10]} Rxe1+ {[%emt 0:02:13]} 22. Qxe1 {[%emt 0:00:01]} Bxd5 {[%emt 0:00:37]} 23. Nh3 {[%emt 0:03:40]} Bxg2 {[%emt 0:00:43]} 24. Kxg2 {[%emt 0:00:10]} Qd5+ {[%emt 0:00:20]} 25. Kf1 {[%emt 0:00:57]} Re8 {[%emt 0:01:06]} 26. Ne2 {[%emt 0:09:22]} Qh1+ {[%emt 0:01:50]} 27. Nhg1 {[%emt 0:00:36]} Ng4 {[%emt 0:00:39]} 28. Qc1 {[%emt 0:03:37]} Qxh2 {[%emt 0:00:30]} 29. Qf4 {[%emt 0:00:51]} Ne3+ {[%emt 0:00:26]} 30. Qxe3 {[%emt 0:01:07]} Rxe3 {[%emt 0:00:04]} 31. b5 {[%emt 0:00:10]} Ne5 {[%emt 0:00:12]} 0-1

[Event "WYCC U18 Girls 2019"]
[Site "Mumbai"]
[Date "2019.10.03"]
[Round "2.2"]
[White "Vantika Agrawal"]
[Black "Makhija, Aashna"]
[Result "1/2-1/2"]
[ECO "E06"]
[WhiteElo "2283"]
[BlackElo "2084"]
[Annotator "NA"]
[PlyCount "182"]
[EventDate "2019.10.02"]
[EventType "swiss"]
[EventCountry "IND"]
[SourceTitle "playchess.com"]
[Source "ChessBase"]
[SourceQuality "1"]
[TimeControl "40/5400+30:1800+30"]

1. d4 {[%emt 0:00:00]} Nf6 {[%emt 0:00:00]} 2. Nf3 {[%emt 0:00:05]} d5 {[%emt 0:00:10]} 3. c4 {[%emt 0:00:06]} e6 {[%emt 0:00:20]} 4. g3 {[%emt 0:00:06]} Be7 {[%emt 0:00:17]} 5. Bg2 {[%emt 0:00:06]} O-O {[%emt 0:00:21]} 6. O-O {[%emt 0:00:07]} dxc4 {[%emt 0:00:17]} 7. Qc2 {[%emt 0:00:22]} a6 {[%emt 0:00:31]} 8. a4 {[%emt 0:00:17]} Bd7 {[%emt 0:01:23]} 9. Bg5 {[%emt 0:00:44]} Bc6 {[%emt 0:02:09]} 10. Rd1 {[%emt 0:00:17]} b5 {[%emt 0:08:57]} 11. Bxf6 {[%emt 0:00:35]} Bxf6 {[%emt 0:01:22]} 12. Nbd2 {[%emt 0:01:06]} g6 {[%emt 0:11:24]} 13. b3 {[%emt 0:01:51]} cxb3 {[%emt 0:07:17]} 14. Nxb3 {[%emt 0:01:24]} Bd5 {[%emt 0:12:05]} 15. e4 {[%emt 0:19:25]} Bxb3 {[%emt 0:03:36]} 16. Qxb3 {[%emt 0:00:09]} bxa4 {[%emt 0:05:47]} 17. Qxa4 {[%emt 0:03:55]} Nd7 {[%emt 0:05:15]} 18. Qc6 {[%emt 0:09:28]} Nb6 {[%emt 0:02:37]} 19. e5 {[%emt 0:01:27]} Be7 {[%emt 0:01:09]} 20. d5 {[%emt 0:12:44]} exd5 {[%emt 0:10:54]} 21. Nd4 {[%emt 0:01:34]} Qc8 {[%emt 0:03:40]} 22. e6 {[%emt 0:11:39]} f6 {[%emt 0:03:21]} 23. Rac1 {[%emt 0:18:51]} Ra7 {[%emt 0:05:39]} 24. Bxd5 {[%emt 0:01:45]} Rd8 {[%emt 0:03:25]} 25. Bf3 {[%emt 0:06:02]} Rd6 {[%emt 0:01:24]} 26. Qe4 {[%emt 0:00:32]} Qe8 {[%emt 0:09:01]} 27. Nc6 {[%emt 0:01:31]} Ra8 {[%emt 0:00:08]} 28. Rxd6 {[%emt 0:00:30]} Bxd6 {[%emt 0:00:48]} 29. e7 {[%emt 0:01:56]} Qf7 {[%emt 0:00:39]} 30. Nd8 {[%emt 0:03:52]} Qxe7 {[%emt 0:00:23]} 31. Qxe7 {[%emt 0:00:10]} Bxe7 {[%emt 0:00:04]} 32. Bxa8 {[%emt 0:00:03]} Nxa8 {[%emt 0:00:52]} 33. Nc6 {[%emt 0:00:16]} Bd6 {[%emt 0:00:24]} 34. Ra1 {[%emt 0:00:10]} Nb6 {[%emt 0:00:29]} 35. Rxa6 {[%emt 0:00:14]} Nd7 {[%emt 0:00:45]} 36. Nd4 {[%emt 0:00:41]} Bc5 {[%emt 0:00:28]} 37. Nb5 {[%emt 0:03:18]} Bb6 {[%emt 0:00:23]} 38. Kg2 {[%emt 0:00:30]} Nc5 {[%emt 0:00:35]} 39. Ra8+ {[%emt 0:00:13]} Kf7 {[%emt 0:00:25]} 40. Rh8 {[%emt 0:00:32]} Kg7 {[%emt 0:00:29]} 41. Rc8 {[%emt 0:30:48]} Ne6 {[%emt 0:01:30]} 42. Nc3 {[%emt 0:00:00]} Bc5 {[%emt 0:02:05]} 43. Nd5 {[%emt 0:00:00]} Bd6 {[%emt 0:00:52]} 44. Re8 {[%emt 0:00:00]} Kf7 {[%emt 0:01:35]} 45. Rc8 {[%emt 0:00:00]} Kg7 {[%emt 0:01:46]} 46. Kf3 {[%emt 0:00:00]} Kf7 {[%emt 0:07:08]} 47. Ke3 {[%emt 0:00:00]} Bc5+ {[%emt 0:04:19]} 48. Ke2 {[%emt 0:00:00]} Bd6 {[%emt 0:01:10]} 49. f4 {[%emt 0:00:00]} f5 {[%emt 0:02:17]} 50. Ne3 {[%emt 0:00:00]} Bc5 {[%emt 0:02:33]} 51. Nc4 {[%emt 0:00:00]} Kg7 {[%emt 0:04:05]} 52. Ne5 {[%emt 0:00:00]} Bd6 {[%emt 0:02:24]} 53. Nf3 {[%emt 0:00:00]} Kf6 {[%emt 0:00:46]} 54. Kd3 {[%emt 0:00:00]} h6 {[%emt 0:02:39]} 55. Nd4 {[%emt 0:05:49]} Nxd4 {[%emt 0:00:58]} 56. Kxd4 {[%emt 0:00:04]} g5 {[%emt 0:01:22]} 57. Ke3 {[%emt 0:00:25]} gxf4+ {[%emt 0:01:09]} 58. gxf4 {[%emt 0:00:04]} Bc5+ {[%emt 0:00:25]} 59. Kf3 {[%emt 0:00:21]} Bd6 {[%emt 0:00:06]} 60. Rg8 {[%emt 0:01:36]} Kf7 {[%emt 0:00:26]} 61. Rg2 {[%emt 0:00:10]} Kf6 {[%emt 0:00:39]} 62. h4 {[%emt 0:00:18]} h5 {[%emt 0:00:57]} 63. Rg5 {[%emt 0:00:19]} Be7 {[%emt 0:00:22]} 64. Rxh5 {[%emt 0:01:01]} Kg6 {[%emt 0:00:21]} 65. Rg5+ {[%emt 0:01:58]} Bxg5 {[%emt 0:00:14]} 66. hxg5 {[%emt 0:00:15]} Kf7 {[%emt 0:01:02]} 67. Ke3 {[%emt 0:00:12]} Ke6 {[%emt 0:00:33]} 68. Kd4 {[%emt 0:00:52]} Kd6 {[%emt 0:00:26]} 69. Kc3 {[%emt 0:01:10]} Kd5 {[%emt 0:00:30]} 70. Kb4 {[%emt 0:00:26]} c5+ {[%emt 0:00:27]} 71. Kb3 {[%emt 0:00:35]} Ke6 {[%emt 0:00:28]} 72. Kc2 {[%emt 0:00:22]} Kd5 {[%emt 0:00:31]} 73. Kd3 {[%emt 0:00:36]} Ke6 {[%emt 0:00:15]} 74. Ke3 {[%emt 0:00:31]} Kd5 {[%emt 0:00:24]} 75. Kd2 {[%emt 0:00:30]} Kd6 {[%emt 0:00:56]} 76. Kc2 {[%emt 0:00:22]} Kd5 {[%emt 0:00:24]} 77. Kb2 {[%emt 0:00:23]} Kd6 {[%emt 0:00:21]} 78. Ka3 {[%emt 0:00:41]} Kd5 {[%emt 0:00:26]} 79. Ka4 {[%emt 0:00:15]} Kd6 {[%emt 0:00:50]} 80. Ka5 {[%emt 0:00:40]} Kd5 {[%emt 0:00:27]} 81. Kb5 {[%emt 0:00:37]} c4 {[%emt 0:00:22]} 82. Kb4 {[%emt 0:00:29]} Kd4 {[%emt 0:00:14]} 83. g6 {[%emt 0:00:14]} c3 {[%emt 0:00:09]} 84. Kb3 {[%emt 0:00:42]} Kd3 {[%emt 0:00:11]} 85. g7 {[%emt 0:00:10]} c2 {[%emt 0:00:07]} 86. g8=Q {[%emt 0:00:41]} c1=Q 87. Qd5+ {[%emt 0:00:47]} Ke3 {[%emt 0:00:42]} 88. Qxf5 Qd1+ {[%emt 0:00:26]} 89. Ka2 {[%emt 0:00:59]} Qa4+ {[%emt 0:00:14]} 90. Kb2 {[%emt 0:00:03]} Qxf4 {[%emt 0:00:14]} 91. Qxf4+ {[%emt 0:00:09]} Kxf4 {[%emt 0:00:04]} 1/2-1/2

[Event "WYCC U18 Girls 2019"]
[Site "Mumbai"]
[Date "2019.10.03"]
[Round "2.3"]
[White "Aciu, Malina-Andreea"]
[Black "Obolentseva, Alexandra"]
[Result "0-1"]
[ECO "B22"]
[WhiteElo "2076"]
[BlackElo "2282"]
[Annotator "NA"]
[PlyCount "108"]
[EventDate "2019.10.02"]
[EventType "swiss"]
[EventCountry "IND"]
[SourceTitle "playchess.com"]
[Source "ChessBase"]
[SourceQuality "1"]
[TimeControl "40/5400+30:1800+30"]

1. e4 {[%emt 0:00:00]} c5 {[%emt 0:00:00]} 2. c3 {[%emt 0:00:00]} Nf6 {[%emt 0:00:00]} 3. e5 {[%emt 0:00:00]} Nd5 {[%emt 0:00:00]} 4. d4 {[%emt 0:00:00]} cxd4 {[%emt 0:00:00]} 5. Nf3 {[%emt 0:00:00]} d6 {[%emt 0:00:52]} 6. cxd4 {[%emt 0:00:00]} Nc6 {[%emt 0:00:08]} 7. Bc4 {[%emt 0:00:00]} dxe5 {[%emt 0:00:14]} 8. Bxd5 {[%emt 0:00:02]} Qxd5 {[%emt 0:00:12]} 9. Nc3 {[%emt 0:00:03]} Qd6 {[%emt 0:00:38]} 10. d5 {[%emt 0:00:05]} Nd4 {[%emt 0:00:12]} 11. Nxd4 {[%emt 0:00:05]} exd4 {[%emt 0:00:05]} 12. Qxd4 {[%emt 0:00:04]} e5 {[%emt 0:00:08]} 13. Qd3 {[%emt 0:00:03]} Bd7 {[%emt 0:00:37]} 14. O-O {[%emt 0:00:07]} f5 {[%emt 0:02:26]} 15. Bd2 {[%emt 0:00:04]} Be7 {[%emt 0:00:27]} 16. Nb5 {[%emt 0:02:48]} Bxb5 {[%emt 0:03:25]} 17. Qxb5+ {[%emt 0:00:06]} Qd7 {[%emt 0:00:36]} 18. Qb3 {[%emt 0:00:37]} Bd6 {[%emt 0:00:13]} 19. Bb4 {[%emt 0:00:17]} O-O {[%emt 0:01:44]} 20. Rfd1 {[%emt 0:24:04]} Rf7 {[%emt 0:01:09]} 21. Rac1 {[%emt 0:03:48]} Rd8 {[%emt 0:00:46]} 22. Bxd6 {[%emt 0:28:49]} Qxd6 {[%emt 0:00:41]} 23. Rc3 {[%emt 0:00:44]} h6 {[%emt 0:01:06]} 24. Qc2 {[%emt 0:01:38]} Kh7 {[%emt 0:01:37]} 25. h3 {[%emt 0:07:48]} Rdd7 {[%emt 0:02:08]} 26. a3 {[%emt 0:01:45]} Rde7 {[%emt 0:04:20]} 27. Rc4 {[%emt 0:04:47]} Rf6 {[%emt 0:01:21]} 28. b4 {[%emt 0:05:50]} e4 {[%emt 0:02:10]} 29. Kh1 {[%emt 0:03:52]} Rg6 {[%emt 0:01:34]} 30. Qe2 {[%emt 0:05:34]} Qe5 {[%emt 0:03:05]} 31. Rcd4 {[%emt 0:01:23]} Rd6 {[%emt 0:00:27]} 32. f3 {[%emt 0:04:28]} exf3 {[%emt 0:02:25]} 33. Qxf3 {[%emt 0:00:05]} g5 {[%emt 0:01:21]} 34. R4d3 {[%emt 0:03:20]} Kg6 {[%emt 0:00:40]} 35. Kg1 {[%emt 0:01:40]} h5 {[%emt 0:01:47]} 36. Kf2 {[%emt 0:01:56]} g4 {[%emt 0:03:46]} 37. hxg4 {[%emt 0:01:39]} fxg4 {[%emt 0:00:32]} 38. Qg3 {[%emt 0:00:43]} Rf7+ {[%emt 0:00:18]} 39. Kg1 {[%emt 0:00:03]} Rxd5 {[%emt 0:00:15]} 40. Qxe5 {[%emt 0:00:29]} Rxe5 {[%emt 0:00:06]} 41. Rd6+ {[%emt 0:03:02]} Kg5 {[%emt 0:00:35]} 42. Rd8 {[%emt 0:07:17]} Re3 {[%emt 0:01:27]} 43. R8d7 {[%emt 0:05:26]} Rxd7 {[%emt 0:00:23]} 44. Rxd7 {[%emt 0:00:06]} Rxa3 {[%emt 0:00:06]} 45. Rxb7 {[%emt 0:00:35]} Kh4 {[%emt 0:00:05]} 46. Kf1 {[%emt 0:02:36]} Kg3 {[%emt 0:01:02]} 47. Rh7 {[%emt 0:01:05]} h4 {[%emt 0:00:21]} 48. Rg7 {[%emt 0:00:21]} Ra1+ {[%emt 0:00:12]} 49. Ke2 {[%emt 0:00:04]} Rb1 {[%emt 0:00:14]} 50. Rxa7 {[%emt 0:02:37]} Rxb4 {[%emt 0:00:23]} 51. Rh7 {[%emt 0:01:17]} Rb2+ {[%emt 0:00:07]} 52. Kf1 {[%emt 0:00:05]} Rf2+ {[%emt 0:00:04]} 53. Ke1 {[%emt 0:01:43]} Rxg2 {[%emt 0:00:12]} 54. Rh8 {[%emt 0:00:58]} h3 {[%emt 0:00:08]} 0-1

[Event "WYCC U18 Girls 2019"]
[Site "Mumbai"]
[Date "2019.10.03"]
[Round "2.4"]
[White "Radeva, Viktoria"]
[Black "Hamedi Nia, Vesal"]
[Result "1/2-1/2"]
[ECO "B33"]
[WhiteElo "2277"]
[BlackElo "2057"]
[Annotator "NA"]
[PlyCount "109"]
[EventDate "2019.10.02"]
[EventType "swiss"]
[EventCountry "IND"]
[SourceTitle "playchess.com"]
[Source "ChessBase"]
[SourceQuality "1"]
[TimeControl "40/5400+30:1800+30"]

1. e4 {[%emt 0:00:00]} c5 {[%emt 0:00:00]} 2. Nf3 {[%emt 0:00:00]} Nc6 {[%emt 0:00:00]} 3. d4 {[%emt 0:00:00]} cxd4 {[%emt 0:00:00]} 4. Nxd4 {[%emt 0:00:00]} Nf6 {[%emt 0:00:04]} 5. Nc3 {[%emt 0:00:00]} e5 {[%emt 0:00:11]} 6. Ndb5 {[%emt 0:00:02]} d6 {[%emt 0:00:06]} 7. Bg5 {[%emt 0:00:07]} a6 {[%emt 0:00:11]} 8. Na3 {[%emt 0:00:06]} b5 {[%emt 0:00:38]} 9. Nd5 {[%emt 0:00:06]} Be7 {[%emt 0:00:06]} 10. Bxf6 {[%emt 0:00:04]} Bxf6 {[%emt 0:00:04]} 11. c3 {[%emt 0:00:09]} Bg5 {[%emt 0:00:06]} 12. Nc2 {[%emt 0:00:07]} Rb8 {[%emt 0:00:21]} 13. Be2 {[%emt 0:00:20]} O-O {[%emt 0:00:37]} 14. O-O {[%emt 0:00:04]} Be6 {[%emt 0:10:44]} 15. Qd3 {[%emt 0:07:26]} a5 {[%emt 0:03:30]} 16. Rfd1 {[%emt 0:20:38]} g6 {[%emt 0:10:51]} 17. Bf3 {[%emt 0:12:53]} Kg7 {[%emt 0:10:02]} 18. g3 {[%emt 0:11:37]} h5 {[%emt 0:14:51]} 19. h4 {[%emt 0:05:17]} Bh6 {[%emt 0:01:43]} 20. Bg2 {[%emt 0:00:28]} Bg4 {[%emt 0:04:55]} 21. Re1 {[%emt 0:01:37]} Qd7 {[%emt 0:04:26]} 22. Nce3 {[%emt 0:02:51]} Be6 {[%emt 0:00:36]} 23. Rad1 {[%emt 0:02:24]} Qa7 {[%emt 0:07:46]} 24. a3 {[%emt 0:09:19]} Rfd8 {[%emt 0:08:03]} 25. Qe2 {[%emt 0:02:59]} Ne7 {[%emt 0:06:35]} 26. Nxe7 {[%emt 0:02:54]} Qxe7 {[%emt 0:00:06]} 27. Nd5 {[%emt 0:00:59]} Qa7 {[%emt 0:00:45]} 28. Rd3 {[%emt 0:02:36]} b4 {[%emt 0:09:29]} 29. axb4 {[%emt 0:01:24]} Bxd5 {[%emt 0:00:21]} 30. Rxd5 {[%emt 0:00:43]} axb4 {[%emt 0:00:06]} 31. c4 {[%emt 0:02:55]} Rbc8 {[%emt 0:07:40]} 32. Red1 {[%emt 0:01:18]} Qa6 {[%emt 0:00:33]} 33. Bf1 {[%emt 0:00:22]} Kh7 {[%emt 0:00:32]} 34. c5 {[%emt 0:03:41]} Qa4 {[%emt 0:00:11]} 35. Qf3 {[%emt 0:01:04]} Kg8 {[%emt 0:00:46]} 36. b3 {[%emt 0:01:11]} Qa2 {[%emt 0:00:29]} 37. Bc4 {[%emt 0:00:26]} Qa7 {[%emt 0:00:32]} 38. cxd6 {[%emt 0:00:19]} Bg7 {[%emt 0:00:14]} 39. Qd3 {[%emt 0:05:37]} Rd7 {[%emt 0:00:36]} 40. Kg2 {[%emt 0:02:32]} Bf8 {[%emt 0:00:36]} 41. Bb5 {[%emt 0:31:26]} Rc3 {[%emt 0:30:18]} 42. Qe2 {[%emt 0:01:02]} Rd8 {[%emt 0:00:07]} 43. Bc4 {[%emt 0:01:27]} Rd7 {[%emt 0:00:33]} 44. Bb5 {[%emt 0:00:00]} Rd8 {[%emt 0:00:00]} 45. Ba4 {[%emt 0:00:00]} Qb8 {[%emt 0:00:00]} 46. d7 {[%emt 0:00:00]} Qc7 {[%emt 0:00:00]} 47. Qa6 {[%emt 0:00:00]} Bc5 {[%emt 0:00:00]} 48. Qf6 {[%emt 0:00:00]} Rc2 {[%emt 0:00:00]} 49. Qxe5 {[%emt 0:00:00]} Rxf2+ {[%emt 0:00:00]} 50. Kh3 {[%emt 0:00:00]} Bd6 {[%emt 0:00:00]} 51. Qxd6 {[%emt 0:00:00]} Qc2 {[%emt 0:00:00]} 52. R5d2 {[%emt 0:00:00]} Rxd2 {[%emt 0:00:00]} 53. Qxd2 {[%emt 0:00:00]} Qxe4 {[%emt 0:00:00]} 54. Re1 {[%emt 0:00:00]} Qf5+ {[%emt 0:00:17]} 55. Kh2 {[%emt 0:00:44]} 1/2-1/2

[Event "WYCC U18 Girls 2019"]
[Site "Mumbai"]
[Date "2019.10.03"]
[Round "2.5"]
[White "Nomindalai Tumurbaatar"]
[Black "Muetsch, Annmarie"]
[Result "0-1"]
[ECO "A41"]
[WhiteElo "2061"]
[BlackElo "2266"]
[Annotator "NA"]
[PlyCount "62"]
[EventDate "2019.10.02"]
[EventType "swiss"]
[EventCountry "IND"]
[SourceTitle "playchess.com"]
[Source "ChessBase"]
[SourceQuality "1"]
[TimeControl "40/5400+30:1800+30"]

1. d4 {[%emt 0:00:00]} d6 {[%emt 0:00:00]} 2. Bf4 {[%emt 0:00:00]} Nd7 {[%emt 0:00:17]} 3. e3 {[%emt 0:03:29]} e5 {[%emt 0:02:27]} 4. dxe5 {[%emt 0:02:05]} dxe5 {[%emt 0:00:06]} 5. Bg3 {[%emt 0:00:06]} Ngf6 {[%emt 0:01:35]} 6. Nd2 {[%emt 0:05:14]} h6 {[%emt 0:14:59]} 7. Nc4 {[%emt 0:12:01]} e4 {[%emt 0:02:14]} 8. Ne2 {[%emt 0:02:50]} a6 {[%emt 0:06:36]} 9. Nd4 {[%emt 0:06:16]} g6 {[%emt 0:05:37]} 10. c3 {[%emt 0:12:04]} Nh5 {[%emt 0:07:51]} 11. Qc2 {[%emt 0:04:48]} Nxg3 {[%emt 0:01:48]} 12. hxg3 {[%emt 0:00:08]} Qe7 {[%emt 0:02:16]} 13. O-O-O {[%emt 0:13:07]} Bg7 {[%emt 0:02:40]} 14. Rh4 {[%emt 0:03:57]} Nf6 {[%emt 0:02:05]} 15. f3 {[%emt 0:04:21]} O-O {[%emt 0:03:28]} 16. Qf2 {[%emt 0:05:45]} Re8 {[%emt 0:05:40]} 17. Nc2 {[%emt 0:06:48]} b5 {[%emt 0:02:23]} 18. Nd2 {[%emt 0:03:00]} Bb7 {[%emt 0:00:25]} 19. f4 {[%emt 0:00:27]} c5 {[%emt 0:02:56]} 20. Be2 {[%emt 0:03:35]} Nd7 {[%emt 0:06:01]} 21. g4 {[%emt 0:03:07]} Nb6 {[%emt 0:03:52]} 22. f5 {[%emt 0:03:37]} Qf6 {[%emt 0:05:12]} 23. Nb1 {[%emt 0:04:11]} g5 {[%emt 0:02:34]} 24. Rhh1 {[%emt 0:00:09]} Bd5 {[%emt 0:03:00]} 25. a3 {[%emt 0:00:47]} Ba2 {[%emt 0:02:48]} 26. Qg3 {[%emt 0:00:07]} Nd5 {[%emt 0:00:45]} 27. Rd2 {[%emt 0:00:53]} b4 {[%emt 0:02:59]} 28. axb4 {[%emt 0:00:36]} cxb4 {[%emt 0:00:11]} 29. Rhd1 {[%emt 0:00:31]} bxc3 {[%emt 0:00:50]} 30. bxc3 {[%emt 0:00:30]} Nxc3 {[%emt 0:01:59]} 31. Nxc3 {[%emt 0:00:29]} Qxc3 {[%emt 0:00:07]} 0-1

[Event "WYCC U18 Girls 2019"]
[Site "Mumbai"]
[Date "2019.10.03"]
[Round "2.6"]
[White "Shpanko, Nadiia"]
[Black "Khachatryan, Anna"]
[Result "1-0"]
[ECO "A33"]
[WhiteElo "2213"]
[BlackElo "2044"]
[Annotator "NA"]
[PlyCount "69"]
[EventDate "2019.10.02"]
[EventType "swiss"]
[EventCountry "IND"]
[SourceTitle "playchess.com"]
[Source "ChessBase"]
[SourceQuality "1"]
[TimeControl "40/5400+30:1800+30"]

1. d4 {[%emt 0:00:00]} Nf6 {[%emt 0:00:35]} 2. c4 {[%emt 0:00:00]} c5 {[%emt 0:00:15]} 3. Nf3 {[%emt 0:01:31]} cxd4 {[%emt 0:02:32]} 4. Nxd4 {[%emt 0:00:08]} Nc6 {[%emt 0:00:05]} 5. Nc3 {[%emt 0:00:58]} e6 {[%emt 0:02:43]} 6. Ndb5 {[%emt 0:06:30]} d6 {[%emt 0:27:43]} 7. Bf4 {[%emt 0:02:06]} e5 {[%emt 0:00:04]} 8. Bg5 {[%emt 0:00:04]} a6 {[%emt 0:03:17]} 9. Bxf6 {[%emt 0:03:25]} gxf6 {[%emt 0:00:04]} 10. Na3 {[%emt 0:00:06]} f5 {[%emt 0:03:03]} 11. e3 {[%emt 0:04:48]} Be6 {[%emt 0:02:52]} 12. Nc2 {[%emt 0:02:28]} Rc8 {[%emt 0:08:14]} 13. Qd2 {[%emt 0:07:12]} Na5 {[%emt 0:15:19]} 14. b3 {[%emt 0:04:03]} Be7 {[%emt 0:10:10]} 15. Nb4 {[%emt 0:03:33]} O-O {[%emt 0:06:03]} 16. Nbd5 {[%emt 0:01:59]} Bg5 {[%emt 0:06:31]} 17. Be2 {[%emt 0:08:32]} Kh8 {[%emt 0:02:45]} 18. f4 {[%emt 0:09:42]} Bh6 {[%emt 0:00:34]} 19. g3 {[%emt 0:00:49]} Bg7 {[%emt 0:03:35]} 20. Rd1 {[%emt 0:02:55]} e4 {[%emt 0:02:44]} 21. Na4 {[%emt 0:02:25]} Rc6 {[%emt 0:00:45]} 22. O-O {[%emt 0:04:23]} Rg8 {[%emt 0:00:29]} 23. Rc1 {[%emt 0:07:00]} h6 {[%emt 0:00:32]} 24. Kf2 {[%emt 0:00:57]} Kh7 {[%emt 0:00:21]} 25. Rfd1 {[%emt 0:00:32]} Re8 {[%emt 0:00:33]} 26. Qe1 {[%emt 0:18:41]} Kg8 {[%emt 0:00:32]} 27. c5 {[%emt 0:01:24]} dxc5 {[%emt 0:00:33]} 28. Ndb6 {[%emt 0:00:23]} Qc7 {[%emt 0:00:32]} 29. Qxa5 {[%emt 0:00:12]} Bf6 {[%emt 0:00:29]} 30. Rxc5 {[%emt 0:03:13]} Bd8 {[%emt 0:00:14]} 31. Rdc1 {[%emt 0:01:04]} Qd6 {[%emt 0:00:36]} 32. Rxc6 {[%emt 0:00:14]} bxc6 {[%emt 0:00:03]} 33. Qxa6 {[%emt 0:01:33]} Qd2 {[%emt 0:00:50]} 34. Rd1 {[%emt 0:00:28]} Qxa2 {[%emt 0:00:10]} 35. Qa8 {[%emt 0:00:14]} 1-0

[Event "WYCC U18 Girls 2019"]
[Site "Mumbai"]
[Date "2019.10.03"]
[Round "2.7"]
[White "Swiech, Joanna"]
[Black "Serikbay, Assel"]
[Result "0-1"]
[ECO "D10"]
[WhiteElo "2054"]
[BlackElo "2208"]
[Annotator "NA"]
[PlyCount "64"]
[EventDate "2019.10.02"]
[EventType "swiss"]
[EventCountry "IND"]
[SourceTitle "playchess.com"]
[Source "ChessBase"]
[SourceQuality "1"]
[TimeControl "40/5400+30:1800+30"]

1. d4 {[%emt 0:00:00]} d5 {[%emt 0:00:00]} 2. c4 {[%emt 0:00:00]} c6 {[%emt 0:00:00]} 3. cxd5 {[%emt 0:00:00]} cxd5 {[%emt 0:00:00]} 4. Nc3 {[%emt 0:00:00]} Nf6 {[%emt 0:00:05]} 5. Bf4 {[%emt 0:00:10]} Nc6 {[%emt 0:01:31]} 6. e3 {[%emt 0:00:30]} a6 {[%emt 0:00:37]} 7. Bd3 {[%emt 0:00:55]} g6 {[%emt 0:02:47]} 8. Qc2 {[%emt 0:08:00]} Bg7 {[%emt 0:01:10]} 9. a3 {[%emt 0:01:19]} Nh5 {[%emt 0:05:36]} 10. Nge2 {[%emt 0:04:24]} O-O {[%emt 0:11:34]} 11. O-O {[%emt 0:03:27]} Nxf4 {[%emt 0:11:31]} 12. Nxf4 {[%emt 0:00:39]} e5 {[%emt 0:01:20]} 13. dxe5 {[%emt 0:01:28]} d4 {[%emt 0:00:46]} 14. exd4 {[%emt 0:07:42]} Nxd4 {[%emt 0:00:21]} 15. Qd1 {[%emt 0:03:01]} Bxe5 {[%emt 0:00:30]} 16. Nfe2 {[%emt 0:17:10]} Bg4 {[%emt 0:08:39]} 17. f3 {[%emt 0:04:02]} Be6 {[%emt 0:04:26]} 18. f4 {[%emt 0:11:24]} Bg7 {[%emt 0:07:47]} 19. Nxd4 {[%emt 0:06:56]} Qxd4+ {[%emt 0:00:18]} 20. Kh1 {[%emt 0:00:07]} Rad8 {[%emt 0:00:57]} 21. Be4 {[%emt 0:01:56]} Qb6 {[%emt 0:08:52]} 22. Qe2 {[%emt 0:02:25]} Rfe8 {[%emt 0:00:55]} 23. Qc2 {[%emt 0:11:37]} Bb3 {[%emt 0:01:26]} 24. Qb1 {[%emt 0:00:12]} Bc4 {[%emt 0:07:46]} 25. Rc1 {[%emt 0:05:48]} Qe3 {[%emt 0:05:15]} 26. Bxb7 {[%emt 0:04:32]} Qxf4 {[%emt 0:02:03]} 27. Re1 {[%emt 0:01:39]} Be5 {[%emt 0:06:11]} 28. g3 {[%emt 0:01:32]} Qf2 {[%emt 0:00:29]} 29. Rg1 {[%emt 0:01:17]} Rb8 {[%emt 0:03:44]} 30. Qe4 {[%emt 0:01:43]} Rxb7 {[%emt 0:04:25]} 31. Qxb7 {[%emt 0:00:33]} Bxc3 {[%emt 0:00:40]} 32. bxc3 {[%emt 0:00:07]} Be2 {[%emt 0:01:09]} 0-1

[Event "WYCC U18 Girls 2019"]
[Site "Mumbai"]
[Date "2019.10.03"]
[Round "2.8"]
[White "Cervantes Landeiro, Thalia"]
[Black "Azali, Tannaz"]
[Result "1-0"]
[ECO "E11"]
[WhiteElo "2176"]
[BlackElo "2022"]
[Annotator "NA"]
[PlyCount "45"]
[EventDate "2019.10.02"]
[EventType "swiss"]
[EventCountry "IND"]
[SourceTitle "playchess.com"]
[Source "ChessBase"]
[SourceQuality "1"]
[TimeControl "40/5400+30:1800+30"]

1. d4 {[%emt 0:00:00]} Nf6 {[%emt 0:00:00]} 2. c4 {[%emt 0:00:00]} e6 {[%emt 0:00:04]} 3. Nf3 {[%emt 0:00:00]} Bb4+ {[%emt 0:00:24]} 4. Nbd2 {[%emt 0:00:16]} b6 {[%emt 0:03:49]} 5. a3 {[%emt 0:02:40]} Bxd2+ {[%emt 0:00:09]} 6. Qxd2 {[%emt 0:07:06]} Bb7 {[%emt 0:00:53]} 7. e3 {[%emt 0:00:39]} O-O {[%emt 0:01:10]} 8. Bd3 {[%emt 0:00:43]} Ne4 {[%emt 0:00:49]} 9. Qc2 {[%emt 0:00:27]} f5 {[%emt 0:00:08]} 10. O-O {[%emt 0:01:34]} d6 {[%emt 0:03:28]} 11. d5 {[%emt 0:12:56]} exd5 {[%emt 0:04:22]} 12. Nd4 {[%emt 0:01:28]} Qe7 {[%emt 0:09:23]} 13. f3 {[%emt 0:03:35]} c5 {[%emt 0:04:09]} 14. fxe4 {[%emt 0:06:26]} fxe4 {[%emt 0:13:03]} 15. Nf5 {[%emt 0:07:00]} Qe5 {[%emt 0:05:49]} 16. Qf2 {[%emt 0:01:56]} Nd7 {[%emt 0:01:37]} 17. Be2 {[%emt 0:01:49]} d4 {[%emt 0:12:38]} 18. Bg4 {[%emt 0:08:19]} Nf6 {[%emt 0:05:53]} 19. Bh3 {[%emt 0:01:12]} d3 {[%emt 0:01:12]} 20. Bd2 {[%emt 0:09:13]} d5 {[%emt 0:03:54]} 21. Bc3 {[%emt 0:02:31]} Qc7 {[%emt 0:00:09]} 22. Qh4 {[%emt 0:03:46]} Ne8 {[%emt 0:12:53]} 23. Ne7+ {[%emt 0:00:18]} 1-0